bitfinex/quotes_BTCUSD_20240727
["timestamp","ask_amount","ask_price","bid_price","bid_amount"]
[1722119993229,0.06622074,68897.0,68896.0,0.37605523]
[1722119993431,0.06622074,68897.0,68896.0,0.02770423]
[1722119993634,0.20792074,68897.0,68896.0,0.02770423]
[1722119993833,0.16447711,68897.0,68896.0,0.02770423]
[1722119995132,0.20791648,68897.0,68896.0,0.02770423]
[1722119995530,0.20791611,68897.0,68896.0,0.02770423]
[1722119995731,0.20791611,68897.0,68896.0,0.017]
[1722119996142,0.20791611,68897.0,68896.0,0.02770423]
[1722119996957,0.06621611,68897.0,68896.0,0.02862823]
[1722119997402,0.13479776,68897.0,68896.0,0.02862823]
[1722119998681,0.13468457,68897.0,68896.0,0.02862823]
[1722119999084,0.09124782,68897.0,68896.0,0.02862823]
[1722119999283,0.13468055,68897.0,68896.0,0.02862823]
[1722119999800,0.13468055,68897.0,68896.0,0.03662742]
[1722120000698,0.13468055,68897.0,68896.0,0.15274442]
[1722120000909,0.13462272,68897.0,68896.0,0.15274442]
[1722120001311,0.13461343,68897.0,68896.0,0.15274442]
[1722120001515,0.13461343,68897.0,68896.0,0.38497842]
[1722120001788,0.13461343,68897.0,68896.0,0.15274442]
[1722120002745,0.11183632,68897.0,68896.0,0.15274442]
[1722120003150,0.06840085,68897.0,68896.0,0.15274442]
[1722120004129,0.11183266,68897.0,68896.0,0.15274442]
[1722120005585,0.9995125,68897.0,68896.0,0.02862823]
[1722120005783,1.2317425,68897.0,68896.0,0.02862823]
[1722120005976,0.116127,68890.0,68882.0,0.116139]
[1722120006178,0.0775,68883.0,68882.0,0.0015542]
[1722120006397,0.21010085,68883.0,68882.0,0.0015542]
[1722120006533,0.27523853,68883.0,68881.0,0.117065]
[1722120006741,0.13353853,68882.0,68881.0,0.000924]
[1722120006945,0.06840085,68882.0,68881.0,0.000924]
[1722120007354,0.06845665,68882.0,68881.0,0.000924]
[1722120007756,0.11199254,68882.0,68881.0,0.00196599]
[1722120007974,0.06857021,68882.0,68881.0,0.00196599]
[1722120008194,0.06857021,68882.0,68881.0,0.000924]
[1722120008440,0.11199069,68882.0,68881.0,0.117066]
[1722120008596,0.06957021,68882.0,68881.0,0.129066]
[1722120008796,0.06948778,68882.0,68881.0,0.36135]
[1722120008978,0.06948778,68882.0,68881.0,0.37435]
[1722120008979,0.001,68882.0,68881.0,0.37435]
[1722120009176,0.001,68882.0,68881.0,0.38515343]
[1722120009623,0.02378126,68882.0,68881.0,0.38515343]
[1722120009822,0.02378126,68882.0,68881.0,1.224681]
[1722120010590,0.001,68882.0,68881.0,1.224681]
[1722120011358,0.00082532,68882.0,68881.0,1.224681]
[1722120011560,0.00082532,68882.0,68881.0,1.456965]
[1722120011964,0.00082532,68882.0,68881.0,1.556965]
[1722120013735,0.00082532,68882.0,68881.0,1.324681]
[1722120014175,0.00082532,68882.0,68881.0,1.240681]
[1722120017323,0.02360481,68882.0,68881.0,1.240681]
[1722120017700,0.02360481,68882.0,68881.0,1.099981]
[1722120021886,0.00082532,68882.0,68881.0,1.099981]
[1722120023480,0.04344688,68886.0,68881.0,1.099981]
[1722120023481,0.04344688,68886.0,68883.0,0.0653]
[1722120023688,0.04344688,68900.0,68899.0,0.1475]
[1722120023910,0.00084,68902.0,68901.0,0.348325]
[1722120024080,0.00084,68902.0,68901.0,1.19523557]
[1722120024377,0.00084,68902.0,68901.0,1.30652301]
[1722120025404,0.02461366,68902.0,68901.0,1.31852301]
[1722120025537,0.00184,68902.0,68901.0,1.31852301]
[1722120026659,0.00184,68902.0,68901.0,1.30652301]
[1722120026660,0.00084,68902.0,68901.0,1.30652301]
[1722120027081,0.00084,68902.0,68901.0,1.32052301]
[1722120027259,0.00084,68902.0,68901.0,1.33452301]
[1722120027464,0.00084,68902.0,68901.0,1.30652301]
[1722120027864,0.00084,68902.0,68901.0,1.33452301]
[1722120028905,0.02361308,68902.0,68901.0,1.33452301]
[1722120029110,0.02361308,68902.0,68901.0,1.32052301]
[1722120029682,0.02361308,68902.0,68901.0,1.30652301]
[1722120030081,0.02361308,68902.0,68901.0,1.32052301]
[1722120030576,0.02361308,68902.0,68901.0,1.33452301]
[1722120030971,0.02361308,68902.0,68901.0,1.32052301]
[1722120031363,0.02361308,68902.0,68901.0,1.08830601]
[1722120031861,0.02361308,68902.0,68901.0,1.10698437]
[1722120032090,0.00084,68902.0,68901.0,1.10698437]
[1722120033567,0.00084,68902.0,68901.0,1.11506454]
[1722120035848,0.00084,68902.0,68901.0,1.51538154]
[1722120036061,0.00084,68902.0,68901.0,1.51738154]
[1722120036391,0.00084,68902.0,68901.0,1.57666154]
[1722120036740,0.00084,68902.0,68901.0,1.83687854]
[1722120037148,0.00084,68902.0,68901.0,1.80887854]
[1722120037552,0.00084,68902.0,68901.0,1.82287854]
[1722120037707,0.00084,68902.0,68901.0,1.80887854]
[1722120038110,0.00084,68902.0,68901.0,1.83687854]
[1722120038540,0.02361056,68902.0,68901.0,1.83687854]
[1722120039483,0.02361056,68902.0,68901.0,1.80887854]
[1722120039618,0.02361056,68902.0,68901.0,1.81787854]
[1722120039824,0.02361056,68902.0,68901.0,1.83187854]
[1722120040250,0.02361056,68902.0,68901.0,1.81787854]
[1722120040449,0.02361056,68902.0,68901.0,2.16887854]
[1722120040654,0.02361056,68902.0,68901.0,2.25494269]
[1722120040812,0.02361056,68902.0,68901.0,2.21420193]
[1722120041016,0.02361056,68902.0,68901.0,2.18487854]
[1722120041707,0.02361056,68902.0,68901.0,1.84098493]
[1722120041908,0.02361056,68902.0,68901.0,1.79766154]
[1722120042340,0.02361056,68902.0,68901.0,2.02987854]
[1722120042543,0.02361056,68902.0,68901.0,2.18487854]
[1722120042742,5.6e-07,68902.0,68901.0,2.39152819]
[1722120042941,0.001,68919.0,68910.0,1.134117]
[1722120043140,0.001,68919.0,68910.0,1.55247657]
[1722120043421,0.001,68919.0,68910.0,1.56840358]
[1722120043622,0.001,68919.0,68910.0,1.56640358]
[1722120043965,0.001,68919.0,68910.0,1.58040358]
[1722120044165,0.001,68919.0,68910.0,1.58240358]
[1722120044373,0.001,68919.0,68910.0,1.58040358]
[1722120044717,0.001,68919.0,68910.0,1.59440358]
[1722120045672,0.001,68919.0,68910.0,1.58040358]
[1722120045931,0.001,68919.0,68910.0,1.56640358]
[1722120046127,0.0309486,68911.0,68910.0,1.58040358]
[1722120046328,0.00818,68911.0,68910.0,1.56640358]
[1722120046722,0.00818,68911.0,68910.0,1.59440358]
[1722120046926,0.03094868,68911.0,68910.0,1.59440358]
[1722120047147,0.03094868,68911.0,68910.0,1.56640358]
[1722120047548,0.03094868,68911.0,68910.0,1.59440358]
[1722120047893,0.03094868,68911.0,68910.0,1.58040358]
[1722120048301,0.03094868,68911.0,68910.0,1.58829471]
[1722120048718,0.03094868,68911.0,68910.0,1.57429471]
[1722120049159,0.03094868,68911.0,68910.0,1.58829471]
[1722120050019,0.03094868,68911.0,68910.0,1.60229471]
[1722120050314,0.03094868,68911.0,68910.0,1.58829471]
[1722120050759,0.03094868,68911.0,68910.0,1.60229471]
[1722120050961,0.03094868,68911.0,68910.0,1.58829471]
[1722120051346,0.03094868,68911.0,68910.0,1.60229471]
[1722120051545,0.03094868,68911.0,68910.0,1.4132381]
[1722120051809,0.00818,68911.0,68910.0,1.36991471]
[1722120051921,0.00818,68911.0,68910.0,1.10072871]
[1722120052382,0.00818,68911.0,68910.0,1.11472871]
[1722120053224,0.14758,68911.0,68910.0,0.15181814]
[1722120053406,0.14758,68911.0,68910.0,0.16791114]
[1722120053619,0.14758,68911.0,68910.0,0.73228314]
[1722120054014,0.14758,68911.0,68910.0,0.71828314]
[1722120055093,0.17035086,68911.0,68910.0,0.71828314]
[1722120055300,0.14758,68911.0,68910.0,0.73128314]
[1722120058751,0.17035086,68911.0,68910.0,0.73128314]
[1722120059920,0.14758,68911.0,68910.0,0.73128314]
[1722120061359,0.14758,68911.0,68910.0,0.26691114]
[1722120061560,0.20660964,68911.0,68910.0,0.04292701]
[1722120061930,0.20660964,68911.0,68910.0,0.027]
[1722120062357,0.20660964,68911.0,68910.0,0.02992701]
[1722120062735,0.20660964,68911.0,68910.0,0.01892701]
[1722120062959,0.14758,68911.0,68910.0,0.01892701]
[1722120063147,0.20661833,68911.0,68910.0,0.007]
[1722120063350,0.14758,68911.0,68910.0,0.007]
[1722120063551,0.20672487,68911.0,68910.0,0.007]
[1722120063779,0.26512112,68911.0,68910.0,0.007]
[1722120063975,0.26512103,68911.0,68910.0,0.007]
[1722120064373,0.25126202,68911.0,68910.0,0.02292701]
[1722120064570,0.25126202,68911.0,68910.0,0.007]
[1722120064892,0.20792487,68911.0,68910.0,0.007]
[1722120065299,0.25126202,68911.0,68910.0,0.02292701]
[1722120065512,0.25006202,68911.0,68910.0,0.007]
[1722120065666,0.59833602,68911.0,68910.0,0.02292701]
[1722120065871,0.40288449,68911.0,68910.0,0.007]
[1722120066071,0.33787877,68911.0,68910.0,0.007]
[1722120066418,0.42464369,68911.0,68910.0,0.007]
[1722120066574,0.43235364,68911.0,68910.0,0.007]
[1722120066957,0.40958079,68911.0,68910.0,0.003]
[1722120067159,0.2935247,68911.0,68910.0,0.003]
[1722120067357,0.2935247,68911.0,68907.0,0.00816608]
[1722120067358,0.0775,68910.0,68907.0,0.00816608]
[1722120067569,0.12090031,68908.0,68905.0,0.116101]
[1722120067765,0.12090031,68908.0,68904.0,0.232206]
[1722120067766,0.0775,68906.0,68904.0,0.116103]
[1722120068026,0.0619,68905.0,68902.0,0.217029]
[1722120068349,0.0619,68905.0,68903.0,0.116104]
[1722120069188,0.10531327,68905.0,68904.0,0.01595287]
[1722120069387,0.0619,68905.0,68904.0,0.01595287]
[1722120069588,0.10533163,68905.0,68904.0,0.01595287]
[1722120069786,0.0619,68905.0,68904.0,0.01595287]
[1722120069999,0.0619,68905.0,68904.0,0.13205587]
[1722120070180,0.08467416,68905.0,68904.0,0.13205587]
[1722120070383,0.08467416,68905.0,68904.0,0.36426287]
[1722120071386,0.0619,68905.0,68904.0,0.37026287]
[1722120071506,0.0619,68905.0,68904.0,0.37626287]
[1722120072627,0.0619,68905.0,68904.0,0.37026287]
[1722120073035,0.0619,68905.0,68904.0,0.37726287]
[1722120074658,0.08467365,68905.0,68904.0,0.37726287]
[1722120074865,0.0619,68905.0,68904.0,0.37726287]
[1722120075558,0.0619,68905.0,68904.0,0.60946987]
[1722120075758,0.08588,68911.0,68910.0,0.116093]
[1722120075959,0.08588,68911.0,68910.0,0.432279]
[1722120076176,0.08588,68911.0,68910.0,0.68039201]
[1722120078319,0.10865225,68911.0,68910.0,0.68039201]
[1722120079102,0.10865225,68911.0,68910.0,0.60439201]
[1722120079228,0.10865225,68911.0,68910.0,0.61239201]
[1722120079431,0.10865225,68911.0,68910.0,0.60439201]
[1722120079613,0.08588,68911.0,68910.0,0.60439201]
[1722120079814,0.08588,68911.0,68910.0,0.60539201]
[1722120080086,0.08588,68911.0,68910.0,0.60439201]
[1722120080824,0.08588,68911.0,68910.0,0.61339201]
[1722120081636,0.08588,68911.0,68910.0,0.62134413]
[1722120081962,0.08588,68911.0,68910.0,0.61334413]
[1722120082164,0.00818,68911.0,68910.0,0.60434413]
[1722120082398,0.03095225,68911.0,68910.0,0.61234413]
[1722120082599,0.03095225,68911.0,68910.0,0.62234413]
[1722120082812,0.03095225,68911.0,68910.0,1.1451897]
[1722120083217,0.00818,68911.0,68910.0,1.1551897]
[1722120084000,0.00818,68911.0,68910.0,1.1451897]
[1722120084418,0.00818,68911.0,68910.0,1.1371897]
[1722120084641,0.00818,68911.0,68910.0,1.1451897]
[1722120084846,0.00818,68911.0,68910.0,1.0787897]
[1722120085033,0.00818,68911.0,68910.0,0.9867897]
[1722120085242,0.07238,68911.0,68910.0,0.9867897]
[1722120085416,0.07238,68911.0,68910.0,0.9957897]
[1722120085946,0.07238,68911.0,68910.0,1.0057897]
[1722120086490,0.07238,68911.0,68910.0,0.9957897]
[1722120086768,0.07238,68911.0,68910.0,1.0067897]
[1722120087187,0.07238,68911.0,68910.0,0.39215813]
[1722120087615,0.13408309,68911.0,68910.0,0.39215813]
[1722120087815,0.17743899,68911.0,68910.0,0.39215813]
[1722120088317,0.13408309,68911.0,68910.0,0.39215813]
[1722120089510,0.07238,68911.0,68910.0,0.39215813]
[1722120090704,0.07238,68911.0,68910.0,0.15997213]
[1722120090705,0.17719642,68911.0,68910.0,0.15997213]
[1722120091037,0.15661567,68911.0,68910.0,0.15997213]
[1722120091418,0.13384354,68911.0,68910.0,0.15997213]
[1722120091603,0.17721065,68911.0,68910.0,0.15997213]
[1722120091952,0.17702976,68911.0,68910.0,0.15997213]
[1722120092587,0.17702976,68911.0,68910.0,0.39215813]
[1722120093645,0.19871399,68911.0,68910.0,0.15997213]
[1722120094299,0.15643344,68911.0,68910.0,0.15997213]
[1722120094521,0.09515213,68911.0,68910.0,0.15997213]
[1722120094839,0.19892959,68911.0,68910.0,0.15997213]
[1722120095041,0.1338507,68911.0,68910.0,0.15997213]
[1722120095339,0.1338507,68911.0,68910.0,0.04387913]
[1722120095543,0.19893931,68911.0,68910.0,0.04387913]
[1722120095749,0.1338507,68911.0,68910.0,0.04387913]
[1722120096289,0.22062256,68911.0,68910.0,0.04387913]
[1722120096877,0.22062256,68911.0,68910.0,0.15997213]
[1722120097052,0.19895215,68911.0,68910.0,0.15997213]
[1722120097256,0.13749668,68911.0,68910.0,0.15997213]
[1722120097673,0.07238,68911.0,68910.0,0.39215813]
[1722120098211,0.09515213,68911.0,68910.0,0.39215813]
[1722120098407,0.07238,68911.0,68910.0,0.39215813]
[1722120098565,0.13749821,68911.0,68910.0,0.39215813]
[1722120099568,0.13749821,68911.0,68910.0,0.04387913]
[1722120099789,0.13749821,68911.0,68910.0,0.03592701]
[1722120099790,0.1335432,68911.0,68910.0,0.03592701]
[1722120099992,0.2123432,68911.0,68910.0,0.03592701]
[1722120100195,0.32087356,68911.0,68910.0,0.02]
[1722120101065,0.25974645,68911.0,68910.0,0.02]
[1722120101297,0.34373824,68911.0,68910.0,0.02]
[1722120101519,0.23516986,68911.0,68910.0,0.02]
[1722120101762,0.23516986,68911.0,68910.0,0.03592701]
[1722120102319,0.34373893,68911.0,68910.0,0.03592701]
[1722120103150,0.34373893,68911.0,68910.0,0.15202001]
[1722120103151,0.34356607,68911.0,68910.0,0.15202001]
[1722120103568,0.34356607,68911.0,68910.0,0.03592701]
[1722120104235,0.34359341,68911.0,68910.0,0.03592701]
[1722120104582,0.23502177,68911.0,68910.0,0.03592701]
[1722120109520,0.21224952,68911.0,68910.0,0.01433431]
[1722120110712,0.21217664,68911.0,68910.0,0.01433431]
[1722120111150,0.15118,68911.0,68910.0,0.01433431]
[1722120111380,0.21220404,68911.0,68910.0,0.13042731]
[1722120111621,0.29907438,68911.0,68910.0,0.13042731]
[1722120111856,0.21220404,68911.0,68910.0,0.13042731]
[1722120112308,0.29907438,68911.0,68910.0,0.13042731]
[1722120112543,0.32184662,68911.0,68910.0,0.13042731]
[1722120112988,0.29907438,68911.0,68910.0,0.13042731]
[1722120113865,0.21210345,68911.0,68910.0,0.13042731]
[1722120114322,0.32070501,68911.0,68910.0,0.13042731]
[1722120116194,0.34347725,68911.0,68910.0,0.13042731]
[1722120117012,0.34327867,68911.0,68910.0,0.13042731]
[1722120117373,0.32050643,68911.0,68910.0,0.13042731]
[1722120117622,0.21188957,68911.0,68910.0,0.13042731]
[1722120119499,0.22997245,68911.0,68910.0,0.13042731]
[1722120120342,0.22997578,68911.0,68910.0,0.13042731]
[1722120120670,0.22997574,68911.0,68910.0,0.13042731]
[1722120122090,0.25274802,68911.0,68910.0,0.13042731]
[1722120122621,0.22998088,68911.0,68910.0,0.13042731]
[1722120123717,0.22998088,68911.0,68910.0,0.01433431]
[1722120123928,0.22998088,68911.0,68909.0,0.116094]
[1722120124136,0.15118,68911.0,68910.0,0.13042731]
[1722120124347,0.22970138,68911.0,68910.0,0.13042731]
[1722120125127,0.25247366,68911.0,68910.0,0.13042731]
[1722120125649,0.2294958,68911.0,68910.0,0.13042731]
[1722120125870,0.21167529,68911.0,68910.0,0.01290087]
[1722120126068,0.21167529,68911.0,68910.0,0.116093]
[1722120126381,0.21267529,68911.0,68910.0,0.12899387]
[1722120126728,0.21167529,68911.0,68910.0,0.12899387]
[1722120127103,0.21267529,68911.0,68910.0,0.13799387]
[1722120128413,0.21267529,68911.0,68910.0,0.02190087]
[1722120128832,0.21278017,68911.0,68910.0,0.02190087]
[1722120129005,0.23555245,68911.0,68910.0,0.02190087]
[1722120129225,0.17495228,68911.0,68910.0,0.02190087]
[1722120129441,0.34420141,68911.0,68910.0,0.02190087]
[1722120130211,0.34420141,68911.0,68910.0,0.13799387]
[1722120130413,0.3213962,68911.0,68910.0,0.13799387]
[1722120131015,0.3214105,68911.0,68910.0,0.13799387]
[1722120131215,0.32141048,68911.0,68910.0,0.13799387]
[1722120132043,0.26085627,68911.0,68910.0,0.13799387]
[1722120132239,0.26085627,68911.0,68910.0,0.02190087]
[1722120132240,0.32136437,68911.0,68910.0,0.02190087]
[1722120132602,0.2126881,68911.0,68910.0,0.02190087]
[1722120133319,0.2126881,68911.0,68910.0,0.04690087]
[1722120133523,0.32139288,68911.0,68910.0,0.04690087]
[1722120133843,0.34416516,68911.0,68910.0,0.04690087]
[1722120135236,0.23546038,68911.0,68910.0,0.04690087]
[1722120135447,0.34409745,68911.0,68910.0,0.04690087]
[1722120135591,0.23539307,68911.0,68910.0,0.04690087]
[1722120135799,0.25270561,68911.0,68910.0,0.04690087]
[1722120136992,0.10970561,68911.0,68910.0,0.12710087]
[1722120137198,0.09239307,68911.0,68910.0,0.92232544]
[1722120137399,0.09239307,68911.0,68910.0,1.15451144]
[1722120137798,0.06962079,68911.0,68910.0,1.15451144]
[1722120138553,0.06982474,68911.0,68910.0,1.15451144]
[1722120138685,0.06982474,68911.0,68910.0,0.77762544]
[1722120138898,0.06965921,68911.0,68910.0,0.77762544]
[1722120140788,0.06972158,68911.0,68910.0,0.77762544]
[1722120140976,0.09249346,68911.0,68910.0,0.77762544]
[1722120141386,0.06972158,68911.0,68910.0,0.77762544]
[1722120141533,0.06985589,68911.0,68910.0,0.77762544]
[1722120144502,0.09262769,68911.0,68910.0,0.77762544]
[1722120144736,0.1406455,68911.0,68910.0,0.77762544]
[1722120144849,0.20130905,68911.0,68910.0,0.77762544]
[1722120147480,0.00742409,68911.0,68910.0,2.08669744]
[1722120147697,0.001,68919.0,68918.0,0.260779]
[1722120147899,0.001,68919.0,68918.0,1.05935657]
[1722120148076,0.001,68919.0,68918.0,1.30433375]
[1722120148697,0.001,68919.0,68918.0,0.84347475]
[1722120148897,0.001,68919.0,68918.0,0.85447475]
[1722120149096,0.002,68919.0,68918.0,0.85447475]
[1722120149328,0.002,68919.0,68918.0,0.85547475]
[1722120149776,0.003,68919.0,68918.0,0.86847475]
[1722120151351,0.003,68919.0,68918.0,0.03781818]
[1722120151352,0.1415,68919.0,68918.0,0.03781818]
[1722120151530,0.40150454,68919.0,68918.0,0.025]
[1722120151733,0.63366054,68919.0,68918.0,0.025]
[1722120152045,0.54966054,68919.0,68918.0,0.025]
[1722120152948,0.78181654,68919.0,68918.0,0.025]
[1722120153985,0.72089,68919.0,68918.0,0.013]
[1722120154188,0.72089,68919.0,68918.0,0.018]
[1722120154189,0.54882264,68919.0,68918.0,0.018]
[1722120154351,0.31666664,68919.0,68918.0,0.018]
[1722120154983,0.31666664,68919.0,68918.0,0.005]
[1722120154984,0.31566664,68919.0,68918.0,0.005]
[1722120155226,0.31666664,68919.0,68918.0,0.011]
[1722120155599,0.54882264,68919.0,68918.0,0.011]
[1722120157148,0.488734,68919.0,68918.0,0.011]
[1722120157346,0.78097692,68919.0,68918.0,0.011]
[1722120157548,1.02816843,68919.0,68918.0,0.011]
[1722120157746,0.79601149,68919.0,68918.0,0.011]
[1722120158509,0.79501149,68919.0,68910.0,0.025]
[1722120158767,0.22462311,68911.0,68910.0,0.025]
[1722120158940,0.28470909,68911.0,68910.0,0.025]
[1722120159292,0.17617698,68911.0,68910.0,0.025]
[1722120159532,0.40968869,68911.0,68910.0,0.03785266]
[1722120159712,0.40848869,68911.0,68910.0,0.025]
[1722120159904,0.43126108,68911.0,68910.0,0.025]
[1722120160260,0.37104639,68911.0,68910.0,0.025]
[1722120160485,0.43126508,68911.0,68910.0,0.026]
[1722120161059,0.43126508,68911.0,68910.0,0.025]
[1722120161263,0.43126508,68911.0,68910.0,0.027]
[1722120161704,0.08299108,68911.0,68910.0,0.027]
[1722120161861,0.08299108,68911.0,68910.0,0.04285266]
[1722120162062,0.19908208,68911.0,68910.0,0.03]
[1722120163493,0.19920347,68911.0,68910.0,0.03]
[1722120164077,0.17643108,68911.0,68910.0,0.03]
[1722120166302,0.28494353,68911.0,68910.0,0.03]
[1722120166686,0.22460345,68911.0,68910.0,0.03]
[1722120166806,0.28473751,68911.0,68910.0,0.03]
[1722120167205,0.30751002,68911.0,68910.0,0.03]
[1722120167423,0.53969302,68911.0,68910.0,0.03]
[1722120167618,0.43118057,68911.0,68910.0,0.03]
[1722120167819,0.19899757,68911.0,68910.0,0.03]
[1722120169757,0.13886357,68911.0,68910.0,0.03]
[1722120169953,0.08222587,68911.0,68910.0,0.04285266]
[1722120170158,0.19831687,68911.0,68910.0,0.027]
[1722120170377,0.19831687,68911.0,68910.0,0.028]
[1722120170580,0.19831687,68911.0,68910.0,0.026]
[1722120172142,1.1369996,68911.0,68910.0,0.025]
[1722120172318,1.1369996,68911.0,68910.0,0.027]
[1722120172487,1.11422703,68911.0,68910.0,0.027]
[1722120172689,1.11422703,68911.0,68910.0,0.028]
[1722120172884,1.05477373,68911.0,68910.0,0.028]
[1722120173088,1.05477373,68911.0,68910.0,0.025]
[1722120173089,1.11456888,68911.0,68910.0,0.025]
[1722120173355,1.11856888,68911.0,68910.0,0.025]
[1722120173557,1.12256888,68911.0,68910.0,0.025]
[1722120175627,1.14534343,68911.0,68910.0,0.025]
[1722120176032,1.527786,68911.0,68910.0,0.025]
[1722120176241,1.46799085,68911.0,68910.0,0.025]
[1722120176450,1.6196238,68911.0,68910.0,0.025]
[1722120176791,1.53561852,68911.0,68910.0,0.025]
[1722120176931,1.61961852,68911.0,68910.0,0.025]
[1722120177276,1.61561852,68911.0,68910.0,0.025]
[1722120177614,1.52976054,68911.0,68910.0,0.026]
[1722120178701,1.61615438,68911.0,68910.0,0.025]
[1722120178876,1.61215438,68911.0,68910.0,0.025]
[1722120179080,1.62215438,68911.0,68910.0,0.026]
[1722120179287,1.63415438,68911.0,68910.0,0.027]
[1722120179484,1.63415438,68911.0,68910.0,0.026]
[1722120179485,1.62271626,68911.0,68910.0,0.026]
[1722120179887,1.63671626,68911.0,68910.0,0.026]
[1722120180593,1.61394171,68911.0,68910.0,0.026]
[1722120180789,1.38175871,68911.0,68910.0,0.026]
[1722120181635,1.2290333,68911.0,68910.0,0.026]
[1722120181812,1.38169906,68911.0,68910.0,0.026]
[1722120183935,1.40447436,68911.0,68910.0,0.026]
[1722120184332,1.29769906,68911.0,68910.0,0.026]
[1722120184542,1.38169906,68911.0,68910.0,0.026]
[1722120184737,1.2290333,68911.0,68910.0,0.026]
[1722120184959,1.38153845,68911.0,68910.0,0.026]
[1722120185208,1.2290333,68911.0,68910.0,0.026]
[1722120185411,1.3815394,68911.0,68910.0,0.026]
[1722120185621,1.2963394,68911.0,68910.0,0.026]
[1722120185793,1.3803394,68911.0,68910.0,0.026]
[1722120186362,1.5102875,68911.0,68910.0,0.026]
[1722120186562,1.3803394,68911.0,68910.0,0.026]
[1722120187306,1.51028749,68911.0,68910.0,0.026]
[1722120187803,1.53306287,68911.0,68910.0,0.026]
[1722120188025,1.53267047,68911.0,68910.0,0.026]
[1722120188757,1.50989509,68911.0,68910.0,0.026]
[1722120189583,1.3577661,68911.0,68910.0,0.026]
[1722120189782,1.50998733,68911.0,68910.0,0.026]
[1722120191207,1.38015379,68911.0,68910.0,0.026]
[1722120191532,1.51008079,68911.0,68910.0,0.026]
[1722120191756,1.51008079,68911.0,68910.0,0.026924]
[1722120191957,1.51092079,68911.0,68910.0,0.026924]
[1722120192087,1.53369617,68911.0,68910.0,0.026924]
[1722120192491,1.51092079,68911.0,68910.0,0.026924]
[1722120194610,1.38093447,68911.0,68910.0,0.026924]
[1722120195010,1.38086805,68911.0,68910.0,0.026924]
[1722120195597,1.38086805,68911.0,68910.0,0.021924]
[1722120195997,1.40364339,68911.0,68910.0,0.021924]
[1722120196197,1.38086805,68911.0,68910.0,0.021924]
[1722120197517,1.2286733,68911.0,68910.0,0.021924]
[1722120197841,1.38099874,68911.0,68910.0,0.021924]
[1722120199239,0.580525,68903.0,68902.0,0.000924]
[1722120199437,0.76406661,68903.0,68902.0,0.000924]
[1722120200343,0.6556854,68903.0,68902.0,0.000924]
[1722120200508,0.6606854,68903.0,68902.0,0.000924]
[1722120200705,0.60055511,68903.0,68902.0,0.000924]
[1722120200912,0.66047525,68903.0,68902.0,0.000924]
[1722120201349,0.66647525,68903.0,68902.0,0.001924]
[1722120204141,0.66642423,68903.0,68902.0,0.001924]
[1722120204312,0.74472423,68903.0,68902.0,0.001924]
[1722120204514,0.68485511,68903.0,68902.0,0.001924]
[1722120204690,0.74472383,68903.0,68902.0,0.001924]
[1722120204897,0.74472383,68903.0,68887.0,0.232262]
[1722120204898,0.580702,68882.0,68881.0,0.000924]
[1722120205102,0.82632481,68882.0,68881.0,0.000924]
[1722120205304,0.97187539,68882.0,68881.0,0.01160149]
[1722120205461,0.97187539,68882.0,68881.0,0.000924]
[1722120205462,1.12213496,68882.0,68881.0,0.000924]
[1722120205663,1.25223059,68882.0,68881.0,0.000924]
[1722120205891,1.34457624,68882.0,68881.0,0.000924]
[1722120206091,1.34657624,68882.0,68881.0,0.015924]
[1722120206423,1.25406062,68882.0,68881.0,0.015924]
[1722120206656,1.26306062,68882.0,68881.0,0.015924]
[1722120207014,1.2031919,68882.0,68881.0,0.015924]
[1722120207182,1.13284745,68882.0,68881.0,0.001924]
[1722120207590,1.14184745,68882.0,68881.0,0.002924]
[1722120208124,1.05784745,68882.0,68881.0,0.002924]
[1722120208330,1.14184745,68882.0,68881.0,0.002924]
[1722120210417,1.14168212,68882.0,68881.0,0.002924]
[1722120211765,1.53654775,68882.0,68881.0,0.002924]
[1722120211989,1.60611373,68882.0,68881.0,0.002924]
[1722120212505,1.62911373,68882.0,68881.0,0.002924]
[1722120213244,1.47634724,68882.0,68881.0,0.002924]
[1722120213473,1.6294334,68882.0,68881.0,0.002924]
[1722120213708,1.47634724,68882.0,68881.0,0.002924]
[1722120213939,1.62943593,68882.0,68881.0,0.002924]
[1722120215200,1.75573593,68882.0,68881.0,0.002924]
[1722120215376,1.77852327,68882.0,68881.0,0.002924]
[1722120215577,1.77810282,68882.0,68881.0,0.002924]
[1722120216586,1.75541955,68882.0,68881.0,0.002924]
[1722120217190,1.416839,68877.0,68876.0,0.000924]
[1722120217391,1.8805153,68877.0,68876.0,0.000924]
[1722120217640,2.09019255,68877.0,68876.0,0.000924]
[1722120218445,1.37029855,68877.0,68876.0,0.000924]
[1722120218583,1.03869538,68877.0,68876.0,0.000924]
[1722120218785,0.79137371,68877.0,68876.0,0.000924]
[1722120219399,0.40881614,68877.0,68876.0,0.000924]
[1722120219616,0.348447,68877.0,68876.0,0.000924]
[1722120219836,0.348447,68877.0,68876.0,0.01305285]
[1722120219837,0.60353266,68877.0,68876.0,0.01305285]
[1722120220048,0.60353266,68877.0,68876.0,0.000924]
[1722120220224,0.580745,68877.0,68876.0,0.000924]
[1722120220426,0.598745,68877.0,68876.0,0.000924]
[1722120220625,0.358447,68877.0,68876.0,0.000924]
[1722120221054,0.351447,68877.0,68876.0,0.000924]
[1722120221227,0.116153,68875.0,68873.0,0.0754]
[1722120221439,0.116154,68874.0,68873.0,0.0754]
[1722120222040,0.28945957,68874.0,68865.0,0.232338]
[1722120222262,0.15145957,68873.0,68861.0,0.062]
[1722120222636,0.116171,68864.0,68861.0,0.062]
[1722120223023,0.116172,68864.0,68861.0,0.062]
[1722120223473,0.13895996,68864.0,68861.0,0.062]
[1722120223677,0.02278796,68864.0,68861.0,0.062]
[1722120223908,0.001,68864.0,68861.0,0.062]
[1722120224639,0.117171,68864.0,68861.0,0.062]
[1722120225199,0.117171,68864.0,68861.0,0.062924]
[1722120226163,0.001,68864.0,68861.0,0.062924]
[1722120226797,0.002,68864.0,68861.0,0.063924]
[1722120226997,0.02478784,68864.0,68861.0,0.063924]
[1722120227531,0.02478784,68864.0,68863.0,0.116172]
[1722120228395,0.001,68864.0,68861.0,0.179099]
[1722120228578,0.001,68864.0,68861.0,0.295275]
[1722120228779,0.002,68864.0,68863.0,0.001]
[1722120229017,0.002,68864.0,68863.0,0.349517]